fUSD/lending_fUSD_20250514
["ID","MTS","AMOUNT","RATE_DAILY","PERIOD"]
[361079577,1747235444125,-400.0,0.00010964,2]
[361079578,1747235444134,-449.91,0.00010964,2]
[361079579,1747235444143,-448.22,0.00010964,2]
[361079580,1747235444154,-400.0,0.00010964,2]
[361079581,1747235444164,-454.02,0.00010964,2]
[361079582,1747235444172,-486.3,0.00010964,2]
[361079583,1747235444182,-400.0,0.00010964,2]
[361079584,1747235444192,-449.1,0.00010964,2]
[361079585,1747235444201,-400.0,0.00010964,2]
[361079586,1747235444211,-400.0,0.00010964,2]
[361079587,1747235444220,-400.0,0.00010964,2]
[361079588,1747235444229,-400.0,0.00010964,2]
[361079589,1747235444239,-400.0,0.00010964,2]
[361079590,1747235444248,-400.0,0.00010964,2]
[361079591,1747235444258,-400.0,0.00010964,2]
[361079592,1747235444267,-400.0,0.00010964,2]
[361079593,1747235444277,-400.0,0.00010964,2]
[361079594,1747235444287,-400.0,0.00010964,2]
[361079595,1747235444296,-400.0,0.00010964,2]
[361079596,1747235444306,-400.0,0.00010964,2]
[361079597,1747235444316,-20.12938648,0.00010964,2]
[361079600,1747235446188,-593.94,0.00010962,2]
[361079601,1747235446198,-80.47646493,0.00010964,2]
[361079602,1747235446210,-299.39414859,0.00010964,2]
[361079603,1747235446219,-400.0,0.00010964,2]
[361079604,1747235446229,-165.20153337,0.00010964,2]
[361079605,1747235446238,-400.0,0.00010964,2]
[361079606,1747235446248,-405.1,0.00010964,2]
[361079607,1747235446258,-400.0,0.00010964,2]
[361079608,1747235446267,-500.0,0.00010964,2]
[361079609,1747235446277,-498.94,0.00010964,2]
[361079610,1747235446286,-400.0,0.00010964,2]
[361079611,1747235446296,-400.0,0.00010964,2]
[361079612,1747235446306,-623.6,0.00010964,2]
[361079613,1747235446316,-470.73,0.00010964,2]
[361079614,1747235446326,-400.0,0.00010964,2]
[361079615,1747235446335,-400.0,0.00010964,2]
[361079616,1747235446345,-400.0,0.00010964,2]
[361079617,1747235446355,-400.0,0.00010964,2]
[361079618,1747235446364,-421.58791819,0.00010964,2]
[361079619,1747235446373,-400.0,0.00010964,2]
[361079620,1747235446383,-400.0,0.00010964,2]
[361079621,1747235446393,-437.29,0.00010964,2]
[361079622,1747235446403,-400.0,0.00010964,2]
[361079623,1747235446413,-400.0,0.00010964,2]
[361079624,1747235446423,-342.07170156,0.00010964,2]
[361079625,1747235446433,-400.0,0.00010964,2]
[361079626,1747235446443,-389.19266269,0.00010964,2]
[361079627,1747235446452,-400.0,0.00010964,2]
[361079628,1747235446461,-400.0,0.00010964,2]
[361079629,1747235446471,-400.0,0.00010964,2]
[361079630,1747235446481,-426.76,0.00010964,2]
[361079631,1747235446491,-400.0,0.00010964,2]
[361079632,1747235446501,-400.0,0.00010964,2]
[361079633,1747235446510,-454.2874112,0.00010964,2]
[361079634,1747235446520,-648.55,0.00010964,2]
[361079635,1747235446529,-400.0,0.00010964,2]
[361079636,1747235446538,-384.14429485,0.00010964,2]
[361079637,1747235446548,-400.0,0.00010964,2]
[361079638,1747235446558,-400.0,0.00010964,2]
[361079639,1747235446567,-517.78444898,0.00010964,2]
[361079640,1747235446577,-400.0,0.00010964,2]
[361079641,1747235446587,-400.0,0.00010964,2]
[361079642,1747235446597,-582.02,0.00010964,2]
[361079643,1747235446607,-400.0,0.00010964,2]
[361079644,1747235446616,-1772.42,0.00010964,2]
[361079645,1747235446626,-910.31,0.00010964,2]
[361079646,1747235446636,-400.0,0.00010964,2]
[361079647,1747235446646,-400.0,0.00010964,2]
[361079648,1747235446656,-400.0,0.00010964,2]
[361079649,1747235446666,-400.0,0.00010964,2]
[361079650,1747235446675,-2092.97,0.00010964,2]
[361079651,1747235446686,-674.02,0.00010964,2]
[361079652,1747235446696,-400.0,0.00010964,2]
[361079653,1747235446705,-493.88944353,0.00010964,2]
[361079654,1747235446715,-400.0,0.00010964,2]
[361079656,1747235446725,-274.58317515,0.00010964,2]
[361079658,1747235446735,-1260.59,0.00010964,2]
[361079660,1747235446744,-400.0,0.00010964,2]
[361079662,1747235446753,-400.0,0.00010964,2]
[361079664,1747235446763,-937.51,0.00010964,2]
[361079666,1747235446773,-400.0,0.00010964,2]
[361079668,1747235446783,-537.89,0.00010964,2]
[361079670,1747235446792,-400.0,0.00010964,2]
[361079672,1747235446802,-1320.44,0.00010964,2]
[361079674,1747235446812,-404.42680951,0.00010964,2]
[361079676,1747235446821,-400.0,0.00010964,2]
[361079678,1747235446831,-400.0,0.00010964,2]
[361079680,1747235446840,-1058.91,0.00010964,2]
[361079682,1747235446851,-400.0,0.00010964,2]
[361079684,1747235446861,-968.56,0.00010964,2]
[361079686,1747235446870,-400.0,0.00010964,2]
[361079688,1747235446880,-400.0,0.00010964,2]
[361079690,1747235446889,-400.0,0.00010964,2]
[361079692,1747235446901,-400.0,0.00010964,2]
[361079694,1747235446912,-164.87275239,0.00010964,2]
[361079697,1747235446922,-400.0,0.00010964,2]
[361079699,1747235446933,-1858.86,0.00010964,2]
[361079701,1747235446942,-416.53762729,0.00010964,2]
[361079703,1747235446952,-400.0,0.00010964,2]
[361079705,1747235446961,-400.0,0.00010964,2]
[361079707,1747235446971,-400.0,0.00010964,2]
[361079709,1747235446980,-1652.65,0.00010964,2]
[361079711,1747235446990,-400.0,0.00010964,2]
[361079713,1747235447000,-400.0,0.00010964,2]
[361079715,1747235447009,-400.0,0.00010964,2]
[361079717,1747235447019,-628.33,0.00010964,2]
[361079719,1747235447028,-400.0,0.00010964,2]
[361079721,1747235447038,-400.0,0.00010964,2]
[361079723,1747235447048,-1717.29,0.00010964,2]
[361079725,1747235447058,-400.0,0.00010964,2]
[361079727,1747235447067,-13227.22,0.00010964,2]
[361079729,1747235447077,-478.40080254,0.00010964,2]
[361079731,1747235447088,-400.0,0.00010964,2]
[361079733,1747235447098,-439.65,0.00010964,2]
[361079735,1747235447109,-400.0,0.00010964,2]
[361079737,1747235447118,-400.0,0.00010964,2]
[361079739,1747235447127,-400.0,0.00010964,2]
[361079741,1747235447138,-400.0,0.00010964,2]
[361079743,1747235447148,-919.9,0.00010964,2]
[361079745,1747235447159,-10707.92,0.00010964,2]
[361079747,1747235447168,-400.0,0.00010964,2]
[361079749,1747235447178,-400.0,0.00010964,2]
[361079751,1747235447187,-400.0,0.00010964,2]
[361079753,1747235447199,-400.0,0.00010964,2]
[361079755,1747235447209,-961.3,0.00010964,2]
[361079757,1747235447219,-400.0,0.00010964,2]
[361079759,1747235447228,-400.0,0.00010964,2]
[361079761,1747235447238,-400.0,0.00010964,2]
[361079763,1747235447247,-2564.13,0.00010964,2]
[361079765,1747235447257,-400.0,0.00010964,2]
[361079767,1747235447267,-400.0,0.00010964,2]
[361079769,1747235447276,-489.08,0.00010964,2]
[361079791,1747235447442,-400.0,0.00010964,2]
[361079795,1747235447500,-4505.16,0.00010964,2]
[361079797,1747235447510,-400.0,0.00010964,2]
[361079799,1747235447519,-400.0,0.00010964,2]
[361079801,1747235447528,-2778.66,0.00010964,2]
[361079803,1747235447537,-400.0,0.00010964,2]
[361079805,1747235447547,-400.0,0.00010964,2]
[361079807,1747235447556,-400.0,0.00010964,2]
[361079809,1747235447566,-1879.71,0.00010964,2]
[361079811,1747235447575,-400.0,0.00010964,2]
[361079813,1747235447585,-401.29,0.00010964,2]
[361079815,1747235447594,-400.0,0.00010964,2]
[361079817,1747235447604,-400.0,0.00010964,2]
[361079819,1747235447613,-1067.88,0.00010964,2]
[361079821,1747235447622,-400.0,0.00010964,2]
[361079823,1747235447632,-400.0,0.00010964,2]
[361079825,1747235447641,-400.0,0.00010964,2]
[361079827,1747235447651,-400.0,0.00010964,2]
[361079829,1747235447660,-475.75,0.00010964,2]
[361079831,1747235447670,-400.0,0.00010964,2]
[361079833,1747235447679,-400.0,0.00010964,2]
[361079835,1747235447688,-400.0,0.00010964,2]
[361079837,1747235447697,-400.0,0.00010964,2]
[361079839,1747235447707,-9308.02,0.00010964,2]
[361079841,1747235447716,-522.12,0.00010964,2]
[361079843,1747235447725,-400.0,0.00010964,2]
[361079845,1747235447735,-400.0,0.00010964,2]
[361079847,1747235447744,-400.0,0.00010964,2]
[361079849,1747235447754,-400.0,0.00010964,2]
[361079851,1747235447763,-400.0,0.00010964,2]
[361079853,1747235447773,-400.0,0.00010964,2]
[361079855,1747235447782,-400.0,0.00010964,2]
[361079857,1747235447792,-400.0,0.00010964,2]
[361079859,1747235447801,-7218.53,0.00010964,2]
[361079861,1747235447810,-400.0,0.00010964,2]
[361079863,1747235447819,-568.57,0.00010964,2]
[361079865,1747235447829,-400.0,0.00010964,2]
[361079867,1747235447838,-400.0,0.00010964,2]
[361079869,1747235447850,-400.0,0.00010964,2]
[361079871,1747235447859,-11498.94,0.00010964,2]
[361079873,1747235447869,-400.0,0.00010964,2]
[361079875,1747235447879,-400.0,0.00010964,2]
[361079877,1747235447889,-1014.55,0.00010964,2]
[361079879,1747235447899,-400.0,0.00010964,2]
[361079881,1747235447911,-400.0,0.00010964,2]
[361079882,1747235447923,-540.91,0.00010964,2]
[361079884,1747235447933,-400.0,0.00010964,2]
[361079885,1747235447943,-918.29,0.00010964,2]
[361079886,1747235447952,-3243.41,0.00010964,2]
[361079887,1747235447963,-400.0,0.00010964,2]
[361079888,1747235447975,-400.0,0.00010964,2]
[361079889,1747235447986,-400.0,0.00010964,2]
[361079890,1747235447997,-400.0,0.00010964,2]
[361079891,1747235448007,-1500.05,0.00010964,2]
[361079892,1747235448018,-713.67,0.00010964,2]
[361079893,1747235448028,-22813.6,0.00010964,2]
[361079894,1747235448039,-400.0,0.00010964,2]
[361079895,1747235448049,-400.0,0.00010964,2]
[361079896,1747235448059,-485.50722864,0.00010964,2]
[361079897,1747235448069,-1383.07,0.00010964,2]
[361079898,1747235448079,-400.0,0.00010964,2]
[361079899,1747235448089,-736.07,0.00010964,2]
[361079900,1747235448100,-612.31,0.00010964,2]
[361079901,1747235448110,-1356.75,0.00010964,2]
[361079902,1747235448120,-400.0,0.00010964,2]
[361079903,1747235448131,-400.0,0.00010964,2]
[361079904,1747235448141,-400.0,0.00010964,2]
[361079905,1747235448151,-1000.0,0.00010964,2]
[361079906,1747235448162,-414.73,0.00010964,2]
[361079907,1747235448174,-400.0,0.00010964,2]
[361079908,1747235448185,-400.0,0.00010964,2]
[361079909,1747235448195,-400.0,0.00010964,2]
[361079910,1747235448206,-676.74,0.00010964,2]
[361079911,1747235448216,-400.0,0.00010964,2]
[361079912,1747235448226,-400.0,0.00010964,2]
[361079913,1747235448237,-506.6,0.00010964,2]
[361079914,1747235448247,-400.0,0.00010964,2]
[361079915,1747235448258,-400.0,0.00010964,2]
[361079916,1747235448269,-514.42,0.00010964,2]
[361079917,1747235448279,-500.0,0.00010964,2]
[361079918,1747235448289,-400.0,0.00010964,2]
[361079919,1747235448300,-400.0,0.00010964,2]
[361079920,1747235448310,-4389.16,0.00010964,2]
[361079921,1747235448320,-400.0,0.00010964,2]
[361079922,1747235448330,-450.54232072,0.00010964,2]
[361079923,1747235448339,-205.33,0.00010964,2]
[361079924,1747235448349,-400.0,0.00010964,2]
[361079925,1747235448359,-400.0,0.00010964,2]
[361079926,1747235448369,-605.94,0.00010964,2]
[361079927,1747235448379,-530.76212839,0.00010964,2]
[361079928,1747235448388,-418.23,0.00010965,2]
[361079929,1747235448398,-400.0,0.00010965,2]
[361079930,1747235448409,-453.49,0.00010965,2]
[361079931,1747235448419,-400.0,0.00010965,2]
[361079932,1747235448430,-1075.65,0.00010965,2]
[361079933,1747235448440,-525.57,0.00010965,2]
[361079934,1747235448449,-1243.6,0.00010965,2]
[361079935,1747235448459,-400.0,0.00010965,2]
[361079936,1747235448470,-582.5,0.00010965,2]
[361079937,1747235448479,-403.33,0.00010965,2]
[361079938,1747235448489,-2224.93,0.00010965,2]
[361079939,1747235448498,-730.52,0.00010965,2]
[361079940,1747235448508,-400.0,0.00010965,2]
[361079941,1747235448518,-400.0,0.00010965,2]
[361079942,1747235448528,-691.54,0.00010965,2]
[361079943,1747235448537,-255.49843288,0.00010965,2]
[361079944,1747235448547,-400.0,0.00010965,2]
[361079945,1747235448557,-707.53,0.00010965,2]
[361079946,1747235448567,-618.78,0.00010965,2]
[361079947,1747235448577,-7055.28,0.00010965,2]
[361079948,1747235448587,-400.0,0.00010965,2]
[361079949,1747235448597,-713.05,0.00010965,2]
[361079950,1747235448607,-448.41,0.00010965,2]
[361079951,1747235448618,-11407.13,0.00010965,2]
[361079952,1747235448628,-400.0,0.00010965,2]
[361079953,1747235448639,-2316.27,0.00010965,2]
[361079954,1747235448649,-400.0,0.00010965,2]
[361079955,1747235448659,-460.67,0.00010965,2]
[361079956,1747235448669,-4081.01,0.00010965,2]
[361079957,1747235448678,-683.4,0.00010965,2]
[361079958,1747235448688,-400.0,0.00010965,2]
[361079959,1747235448697,-1083.08,0.00010966,2]
[361079960,1747235448707,-400.0,0.00010966,2]
[361079961,1747235448716,-400.0,0.00010966,2]
[361079962,1747235448726,-400.0,0.00010966,2]
[361079963,1747235448739,-400.0,0.00010966,2]
[361079964,1747235448748,-400.0,0.00010966,2]
[361079965,1747235448758,-1034.09,0.00010966,2]
[361079966,1747235448767,-400.0,0.00010966,2]
[361079967,1747235448778,-400.0,0.00010966,2]
[361079968,1747235448787,-546.58,0.00010966,2]
[361079969,1747235448796,-400.0,0.00010966,2]
[361079970,1747235448806,-400.0,0.00010966,2]
[361079971,1747235448815,-358.0,0.00010966,2]
[361079972,1747235448824,-400.0,0.00010966,2]
[361079973,1747235448834,-400.0,0.00010966,2]
[361079974,1747235448843,-400.0,0.00010966,2]
[361079975,1747235448856,-400.0,0.00010966,2]
[361079976,1747235448866,-400.0,0.00010966,2]
[361079977,1747235448875,-400.0,0.00010966,2]
[361079978,1747235448885,-400.0,0.00010966,2]
[361079979,1747235448894,-400.0,0.00010966,2]
[361079980,1747235448904,-400.0,0.00010966,2]
[361079981,1747235448914,-400.0,0.00010966,2]
[361079982,1747235448925,-400.0,0.00010966,2]
[361079983,1747235448935,-400.0,0.00010966,2]
[361079984,1747235448946,-400.0,0.00010966,2]
[361079985,1747235448956,-456.42,0.00010966,2]
[361079986,1747235448965,-400.0,0.00010966,2]
[361079987,1747235448975,-400.0,0.00010966,2]
[361079988,1747235448984,-400.0,0.00010966,2]
[361079989,1747235448994,-967.35,0.00010966,2]
[361079990,1747235449004,-606.48,0.00010966,2]
[361079991,1747235449015,-400.0,0.00010966,2]
[361079992,1747235449025,-400.0,0.00010966,2]
[361079993,1747235449035,-400.0,0.00010966,2]
[361079994,1747235449044,-400.0,0.00010966,2]
[361079995,1747235449054,-400.0,0.00010966,2]
[361079996,1747235449063,-517.63,0.00010966,2]
[361079997,1747235449073,-400.0,0.00010966,2]
[361079998,1747235449083,-400.0,0.00010966,2]
[361079999,1747235449093,-400.0,0.00010966,2]
[361080000,1747235449102,-400.0,0.00010966,2]
[361080001,1747235449112,-436.85,0.00010966,2]
[361080002,1747235449123,-400.0,0.00010966,2]
[361080003,1747235449133,-825.47,0.00010966,2]
[361080004,1747235449143,-547.08,0.00010966,2]
[361080005,1747235449153,-400.0,0.00010966,2]
[361080006,1747235449165,-400.0,0.00010966,2]
[361080007,1747235449175,-400.0,0.00010966,2]
[361080008,1747235449185,-400.0,0.00010966,2]
[361080009,1747235449195,-400.0,0.00010966,2]
[361080010,1747235449205,-400.0,0.00010966,2]
[361080011,1747235449215,-400.0,0.00010966,2]
[361080012,1747235449225,-400.0,0.00010966,2]
[361080013,1747235449235,-400.0,0.00010966,2]
[361080014,1747235449245,-400.0,0.00010966,2]
[361080015,1747235449254,-400.0,0.00010966,2]
[361080016,1747235449264,-526.46030109,0.00010966,2]
[361080017,1747235449274,-400.0,0.00010966,2]
[361080018,1747235449283,-400.0,0.00010966,2]
[361080019,1747235449293,-412.41,0.00010966,2]
[361080020,1747235449302,-400.0,0.00010966,2]
[361080021,1747235449312,-400.0,0.00010966,2]
[361080022,1747235449321,-400.0,0.00010966,2]
[361080023,1747235449331,-400.0,0.00010966,2]
[361080024,1747235449340,-738.68,0.00010966,2]
[361080025,1747235449350,-400.0,0.00010966,2]
[361080026,1747235449359,-245.97797658,0.00010966,2]
[361080027,1747235449369,-400.0,0.00010966,2]
[361080028,1747235449379,-400.0,0.00010966,2]
[361080029,1747235449388,-400.0,0.00010966,2]
[361080030,1747235449398,-400.0,0.00010966,2]
[361080031,1747235449407,-1036.0,0.00010966,2]
[361080032,1747235449417,-400.0,0.00010966,2]
[361080033,1747235449427,-420.2,0.00010966,2]
[361080034,1747235449436,-400.0,0.00010966,2]
[361080035,1747235449448,-400.0,0.00010966,2]
[361080036,1747235449458,-400.0,0.00010966,2]
[361080037,1747235449468,-400.0,0.00010966,2]
[361080038,1747235449478,-400.0,0.00010966,2]
[361080039,1747235449488,-400.0,0.00010966,2]
[361080040,1747235449497,-400.0,0.00010966,2]
[361080041,1747235449507,-640.0,0.00010966,2]
[361080042,1747235449516,-678.2,0.00010966,2]
[361080043,1747235449526,-400.0,0.00010966,2]
[361080044,1747235449538,-600.89,0.00010966,2]
[361080045,1747235449548,-577.42,0.00010966,2]
[361080046,1747235449558,-616.17,0.00010966,2]
[361080047,1747235449567,-1217.24,0.00010966,2]
[361080048,1747235449577,-727.91,0.00010966,2]
[361080049,1747235449586,-577.97,0.00010966,2]
[361080050,1747235449596,-400.0,0.00010966,2]
[361080051,1747235449606,-636.02,0.00010966,2]
[361080052,1747235449615,-400.0,0.00010966,2]
[361080053,1747235449625,-400.0,0.00010966,2]
[361080054,1747235449634,-457.19,0.00010966,2]
[361080055,1747235449644,-1131.33,0.00010966,2]
[361080056,1747235449655,-1529.0,0.00010966,2]
[361080057,1747235449666,-400.0,0.00010966,2]
[361080058,1747235449675,-400.0,0.00010966,2]
[361080059,1747235449685,-694.97,0.00010966,2]
[361080060,1747235449695,-402.69,0.00010966,2]
[361080061,1747235449705,-500.0,0.00010973,2]
[361080062,1747235449715,-500.0,0.00010973,2]
[361080063,1747235449724,-1000.0,0.00010983,2]
[361080064,1747235449734,-205.5,0.00011004,2]
[361080065,1747235449744,-24432.30463753,0.00011022,2]
[361080066,1747235449754,-10814.60545918,0.00011099,2]
[361080067,1747235449764,-10814.60545916,0.00011099,2]
[361080068,1747235449774,-5392.13,0.000111,2]
[361080069,1747235449784,-664.81191797,0.00011136,2]
[361080070,1747235449793,-1145.2448,0.0001114,2]
[361080071,1747235449803,-196.52801518,0.0001114,2]
[361080072,1747235449812,-553.36,0.00011155,2]
[361080073,1747235449821,-167.03,0.00011164,2]
[361080074,1747235449831,-535.81878461,0.0001123,2]
[361080075,1747235449840,-4000.0,0.00011233,2]
[361080076,1747235449852,-400.0,0.00011235,2]
[361080077,1747235449862,-400.0,0.00011235,2]
[361080078,1747235449871,-238.57228244,0.00011236,2]
[361080079,1747235449881,-401.7297543,0.00011236,2]
[361080080,1747235449891,-400.0,0.00011236,2]
[361080081,1747235449901,-400.0,0.00011236,2]
[361080082,1747235449912,-500.02,0.00011236,2]
[361080083,1747235449922,-400.0,0.00011236,2]
[361080084,1747235449933,-400.0,0.00011236,2]
[361080085,1747235449997,-494.56,0.00011236,2]
[361080086,1747235450008,-381.53482706,0.00011236,2]
[361080087,1747235450018,-400.0,0.00011236,2]
[361080088,1747235450028,-400.0,0.00011236,2]
[361080089,1747235450037,-544.73,0.00011236,2]
[361080090,1747235450048,-400.0,0.00011236,2]
[361080091,1747235450057,-7117.48,0.00011236,2]
[361080092,1747235450067,-1058.95,0.00011236,2]
[361080093,1747235450077,-400.0,0.00011236,2]
[361080094,1747235450086,-400.0,0.00011236,2]
[361080095,1747235450096,-9190.46,0.00011236,2]
[361080096,1747235450106,-745.8,0.00011236,2]
[361080097,1747235450116,-785.82,0.00011236,2]
[361080098,1747235450126,-2012.34,0.00011236,2]
[361080099,1747235450136,-775.46,0.00011236,2]
[361080100,1747235450146,-166.26452358,0.00011236,2]
[361080101,1747235450155,-400.0,0.00011236,2]
[361080102,1747235450168,-400.0,0.00011236,2]
[361080103,1747235450178,-943.33,0.00011236,2]
[361080104,1747235450187,-571.94,0.00011236,2]
[361080105,1747235450197,-734.15,0.00011236,2]
[361080106,1747235450206,-890.62,0.00011236,2]
[361080107,1747235450215,-400.0,0.00011236,2]
[361080108,1747235450225,-400.0,0.00011236,2]
[361080109,1747235450235,-400.0,0.00011236,2]
[361080110,1747235450244,-400.0,0.00011236,2]
[361080111,1747235450254,-400.0,0.00011236,2]
[361080112,1747235450263,-480.266048,0.00011236,2]
[361080113,1747235450272,-400.0,0.00011236,2]
[361080114,1747235450283,-505.91,0.00011236,2]
[361080115,1747235450293,-400.0,0.00011236,2]
[361080116,1747235450303,-473.29,0.00011236,2]
[361080117,1747235450312,-451.3,0.00011236,2]
[361080118,1747235450322,-6346.99,0.00011236,2]
[361080119,1747235450332,-400.0,0.00011236,2]
[361080120,1747235450343,-593.94,0.00011236,2]
[361080121,1747235450352,-409.90274378,0.00011237,2]
[361080122,1747235450362,-228.70638729,0.00011237,2]
[361080123,1747235450371,-155.467163,0.00011237,2]
[361080124,1747235450381,-6227.00451528,0.00011237,2]
[361080125,1747235450782,-10259.99999999,0.00011237,2]
[361080126,1747235450794,-526.01000001,0.00011237,2]
[361080135,1747235713387,533.27,8.219e-05,2]
[361080136,1747235761870,179.48,9.899e-05,2]
[361080137,1747236002222,150.0,9.836e-05,7]
[361080139,1747236040378,378.49,9.777e-05,2]
[361080146,1747236109859,1385.68,9.78e-05,2]
[361080149,1747236586806,-10000.0,9.995e-05,2]
[361080150,1747236587777,-10000.0,9.995e-05,2]
[361080151,1747236588609,-10000.0,9.995e-05,2]
[361080152,1747236589636,-10000.0,9.995e-05,2]
[361080153,1747236590582,-10000.0,9.995e-05,2]
[361080156,1747236595308,-7947.5347912,9.995e-05,2]
[361080157,1747236595329,-164.72,9.995e-05,2]
[361080158,1747236595354,-450.0,0.0001,2]
[361080159,1747236619693,1000.0,9.732e-05,2]
[361080175,1747236632511,-175.92066674,0.00010007,2]
[361080176,1747236632520,-310.67,0.00010027,2]
[361080177,1747236632530,-592.5,0.00010107,2]
[361080178,1747236632539,-439.64,0.00010295,2]
[361080179,1747236632548,-270.6177,0.00010375,2]
[361080180,1747236632558,-145.69075448,0.00010403,2]
[361080181,1747236632657,-164.97924552,0.00010403,2]
[361080182,1747236632668,-1200.0,0.00010439,2]
[361080183,1747236632677,-300.0,0.00010439,2]
[361080184,1747236632687,-500.0,0.0001044,2]
[361080185,1747236632696,-438.97683432,0.0001044,2]
[361080186,1747236632705,-1459.76466868,0.0001044,2]
[361080187,1747236632715,-150.0,0.0001044,2]
[361080188,1747236632724,-157.35,0.00010441,2]
[361080189,1747236632733,-9999.99,0.00010441,2]
[361080190,1747236632742,-1131.41,0.00010441,2]
[361080191,1747236632751,-5200.99,0.00010441,2]
[361080192,1747236632760,-150.99,0.00010441,2]
[361080193,1747236632769,-4602.58,0.00010441,2]
[361080194,1747236632778,-157.35,0.00010451,2]
[361080195,1747236632788,-157.35,0.00010461,2]
[361080196,1747236632796,-157.35,0.00010472,2]
[361080197,1747236632806,-19999.99,0.00010475,2]
[361080198,1747236632815,-6269.88,0.00010475,2]
[361080200,1747236632825,-6065.75,0.00010475,2]
[361080201,1747236632834,-533.27,0.00010476,2]
[361080202,1747236632842,-157.35,0.00010482,2]
[361080203,1747236632851,-157.35,0.00010493,2]
[361080204,1747236632860,-2500.0,0.00010532,2]
[361080205,1747236632869,-2500.0,0.00010532,2]
[361080206,1747236632877,-1000.0,0.00010767,2]
[361080207,1747236632886,-500.0,0.00010767,2]
[361080208,1747236632895,-35915.6791,0.00010767,2]
[361080209,1747236632904,-310.67,0.00010779,2]
[361080210,1747236632912,-604.76076043,0.000108,2]
[361080211,1747236632923,-443.20794532,0.00010862,2]
[361080212,1747236632932,-101834.63144573,0.00010863,2]
[361080213,1747236632943,-1389.21643372,0.00010863,2]
[361080214,1747236632954,-518.23066378,0.00010863,2]
[361080225,1747236638421,-1121.70137876,0.00010863,2]
[361080226,1747236638435,-1504.27587895,0.00010863,2]
[361080227,1747236638446,-4184.156181,0.00010863,2]
[361080228,1747236638457,-1906.81761806,0.00010863,2]
[361080229,1747236638467,-68.18238194,0.00010881,2]
[361080230,1747236638479,-375.02556336,0.00010881,2]
[361080231,1747236638489,-169.70522057,0.000109,2]
[361080232,1747236638500,-7522.0430057,0.000109,2]
[361080233,1747236638510,-1000.0,0.00010948,2]
[361080234,1747236638520,-270.55027296,0.00010958,2]
[361080235,1747236638530,-510.25264832,0.00010958,2]
[361080236,1747236638539,-153.01581305,0.00010958,2]
[361080237,1747236638549,-404.66331502,0.00010958,2]
[361080238,1747236638559,-223.15056515,0.00010958,2]
[361080239,1747236638568,-400.0,0.00010958,2]
[361080240,1747236638578,-451.9129048,0.00010958,2]
[361080241,1747236638588,-400.588147,0.00010958,2]
[361080242,1747236638598,-400.0,0.00010958,2]
[361080243,1747236638608,-400.0,0.00010958,2]
[361080244,1747236638618,-196.31174196,0.00010958,2]
[361080246,1747236638627,-345.06608791,0.00010958,2]
[361080247,1747236638637,-400.0,0.00010958,2]
[361080248,1747236638647,-400.0,0.00010958,2]
[361080249,1747236638656,-384.907797,0.00010958,2]
[361080250,1747236638666,-574.51,0.00010958,2]